bitfinex-derivatives/quotes_SOLF0:USTF0_20250716
["timestamp","ask_amount","ask_price","bid_price","bid_amount"]
[1752643283790,43.42167861,163.29,163.23,0.04328554]
[1752643283995,33.0,163.29,163.23,0.04328554]
[1752643284698,33.0,163.29,163.27,6.1243]
[1752643284991,33.0,163.29,163.24,4.29787861]
[1752643285191,33.0,163.29,163.28,6.1241]
[1752643286391,6.1228,163.32,163.28,6.1241]
[1752643286697,6.1223,163.33,163.29,6.1237]
[1752643287097,33.0,163.35,163.28,4.29787861]
[1752643287295,6.122,163.34,163.28,4.29787861]
[1752643287799,33.0,163.35,163.29,0.04329831]
[1752643288200,39.1217,163.35,163.31,6.1228]
[1752643288897,6.1219,163.34,163.31,6.1228]
[1752643290201,39.1217,163.35,163.31,6.1228]
[1752643292803,39.1217,163.35,163.3,6.1232]
[1752643293399,33.0,163.35,163.3,6.1232]
[1752643293604,6.122,163.34,163.29,6.16689831]
[1752643293901,4.29787861,163.34,163.29,0.04329831]
[1752643294101,6.1224,163.33,163.29,6.16699831]
[1752643295199,6.1226,163.32,163.29,6.16699831]
[1752643296103,6.1223,163.33,163.29,6.16699831]
[1752643296598,185.3223,163.33,163.29,6.16699831]
[1752643297104,179.2,163.33,163.29,6.16699831]
[1752643298608,185.3223,163.33,163.29,6.16699831]
[1752643299106,10.42077861,163.32,163.29,0.04329831]
[1752643300310,4.29787861,163.32,163.29,0.04329831]
[1752643301106,189.62027861,163.33,163.29,0.04329831]
[1752643303908,185.3224,163.33,163.29,0.04329831]
[1752643304108,189.62027861,163.33,163.29,0.04329831]
[1752643305203,185.3224,163.33,163.29,6.16699831]
[1752643305410,189.62027861,163.33,163.29,6.16699831]
[1752643305610,183.49787861,163.33,163.29,6.16699831]
[1752643305906,179.2,163.33,163.29,0.04329831]
[1752643306710,179.2,163.33,163.31,6.1227]
[1752643307308,179.2,163.33,163.32,6.1226]
[1752643310313,539.91897861,163.36,163.32,6.1226]
[1752643310613,179.08,163.35,163.31,6.1228]
[1752643311406,185.2015,163.35,163.31,6.1228]
[1752643311611,179.08,163.35,163.31,6.1228]
[1752643312216,10.41917861,163.36,163.31,6.1228]
[1752643312412,179.08,163.35,163.31,6.1228]
[1752643313018,185.2015,163.35,163.31,6.1228]
[1752643318522,179.08,163.35,163.27,4.29787861]
[1752643318827,179.08,163.35,163.29,4.29787861]
[1752643319324,179.08,163.35,163.32,6.1224]
[1752643321529,179.08,163.35,163.33,6.1222]
[1752643321723,179.08,163.35,163.3,4.29787861]
[1752643322027,10.41248911,163.36,163.25,5.1119734]
[1752643322229,4.29118911,163.34,163.26,9.49773692]
[1752643322428,4.29118911,163.34,163.27,5.20654781]
[1752643322625,4.29118911,163.34,163.26,4.29118911]
[1752643322928,4.29118911,163.34,163.3,6.1231]
[1752643323427,4.29118911,163.34,163.31,6.1229]
[1752643324030,10.41308911,163.34,163.3,6.1231]
[1752643324330,6.1219,163.34,163.3,6.1231]
[1752643325331,6.1223,163.33,163.3,6.1231]
[1752643325531,10.41348911,163.33,163.3,6.1231]
[1752643326133,4.29323794,163.32,163.24,5.1119734]
[1752643326328,4.29323794,163.32,163.25,5.21477188]
[1752643326529,4.29323794,163.32,163.26,5.21477188]
[1752643326730,10.41603794,163.32,163.28,6.1239]
[1752643327233,4.29323794,163.33,163.25,4.29323794]
[1752643327428,4.29323794,163.35,163.27,4.29323794]
[1752643327630,10.41493794,163.35,163.31,6.1228]
[1752643328132,4.29323794,163.35,163.31,6.1228]
[1752643328631,6.1221,163.34,163.31,6.1228]
[1752643328831,6.1221,163.34,163.3,6.1232]
[1752643329134,6.1221,163.34,163.27,4.29323794]
[1752643329431,6.1221,163.34,163.28,5.22113434]
[1752643329625,6.1221,163.34,163.27,4.29323794]
[1752643329827,10.41493794,163.35,163.31,6.1227]
[1752643330030,10.41493794,163.35,163.27,4.29323794]
[1752643330225,10.41493794,163.35,163.28,5.22232072]
[1752643330428,532.00792,163.42,163.29,5.22232072]
[1752643330624,710.96792,163.42,163.3,9.51486095]
[1752643330827,710.96792,163.42,163.31,9.51133575]
[1752643330828,4.28971274,163.4,163.31,9.51133575]
[1752643331035,6.1205,163.38,163.31,4.28971274]
[1752643331332,10.41021274,163.38,163.34,0.04168711]
[1752643331727,6.1205,163.38,163.34,0.04168711]
[1752643331929,6.1208,163.37,163.34,0.04168711]
[1752643332126,4.29017826,163.39,163.34,0.04168711]
[1752643332328,4.29017826,163.37,163.34,0.04168711]
[1752643332531,6.1214,163.36,163.34,0.04168711]
[1752643332834,4.29017826,163.37,163.34,0.04168711]
[1752643333633,6.1214,163.36,163.34,0.04168711]
[1752643335835,6.1215,163.35,163.34,0.04168711]
[1752643336632,6.1212,163.36,163.34,0.04168711]
[1752643337033,4.29017826,163.37,163.34,0.04168711]
[1752643337233,4.29017826,163.35,163.34,0.04168711]
[1752643337435,10.41167826,163.35,163.34,0.04168711]
[1752643338333,6.1215,163.35,163.34,0.04168711]
[1752643338638,4.29017826,163.36,163.34,0.04168711]
[1752643338840,183.21017826,163.36,163.34,0.04168711]
[1752643339037,6.1215,163.35,163.34,0.04168711]
[1752643340635,178.92,163.36,163.34,0.04168711]
[1752643342141,178.92,163.36,163.34,6.16328711]
[1752643343339,178.92,163.36,163.34,0.04168711]
[1752643346645,178.92,163.36,163.34,6.16338711]
[1752643349441,178.92,163.36,163.34,0.04168711]
[1752643349640,6.1208,163.37,163.34,0.04168711]
[1752643350146,10.41067826,163.38,163.34,6.16348711]
[1752643350742,4.29017826,163.38,163.34,0.04168711]
[1752643350945,4.29017826,163.38,163.35,6.1213]
[1752643351244,4.29017826,163.38,163.34,0.04168711]
[1752643352149,185.7402,163.39,163.34,6.16338711]
[1752643353345,185.7402,163.39,163.35,6.1214]
[1752643354252,179.62,163.39,163.35,6.1214]
[1752643354453,179.62,163.39,163.34,6.16338711]
[1752643354953,185.7403,163.39,163.34,6.16338711]
[1752643355651,10.41077826,163.38,163.34,0.04168711]
[1752643355851,4.29017826,163.38,163.34,0.04168711]
[1752643356350,4.29017826,163.36,163.34,0.04168711]
[1752643356748,10.41137826,163.36,163.34,0.04168711]
[1752643357145,4.29017826,163.36,163.34,0.04168711]
[1752643357350,4.29017826,163.36,163.24,6.85420679]
[1752643357351,179.98,163.35,163.24,5.1119734]
[1752643357649,179.98,163.35,163.22,536.03420679]
[1752643357650,4.29017826,163.31,163.25,5.15513764]
[1752643357855,184.37017826,163.31,163.22,533.47017826]
[1752643358153,184.37017826,163.31,163.23,5.156498]
[1752643358346,190.49337826,163.31,163.26,6.1246]
[1752643358753,0.0387934,163.29,163.26,6.1246]
[1752643359255,4.32897166,163.29,163.25,6.1251]
[1752643359453,4.32897166,163.29,163.21,5.1119734]
[1752643359654,4.32897166,163.29,163.13,25.96791358]
[1752643359655,4.32897166,163.29,163.22,5.15432393]
[1752643359851,10.45297166,163.29,163.23,5.15432393]
[1752643360050,10.41417826,163.29,163.24,5.15432393]
[1752643360251,10.41417826,163.29,163.2,9.40215166]
[1752643360451,0.04200199,163.28,163.21,5.15756846]
[1752643360756,4.29017826,163.27,163.22,5.15756846]
[1752643360946,4.29017826,163.27,163.18,4.29017826]
[1752643361147,4.29017826,163.27,163.19,5.16023374]
[1752643361450,4.29017826,163.25,163.21,6.1265]
[1752643361648,4.32971878,163.25,163.21,6.1265]
[1752643362151,4.32971878,163.25,163.16,4.29017826]
[1752643362454,4.29017826,163.23,163.17,5.15191534]
[1752643362649,0.03954052,163.25,163.18,5.15162937]
[1752643362854,4.29017826,163.26,163.17,4.29017826]
[1752643363049,10.41537826,163.26,163.18,5.15130698]
[1752643363249,0.0449228,163.23,163.17,4.29017826]
[1752643363454,0.0449228,163.23,163.18,5.14921705]
[1752643363654,0.0449228,163.23,163.2,6.1268]
[1752643364057,0.0449228,163.23,163.17,4.29017826]
[1752643364257,0.0449228,163.23,163.18,5.14889712]
[1752643364458,0.0449228,163.23,163.17,4.29017826]
[1752643364653,0.0449228,163.23,163.18,5.14591097]
[1752643364854,0.0449228,163.23,163.17,4.29017826]
[1752643365354,0.0449228,163.23,163.2,6.1269]
[1752643366055,0.0449228,163.23,163.19,6.1274]
[1752643366261,0.0449228,163.23,163.17,4.29017826]
[1752643366454,0.0449228,163.23,163.21,6.1267]
[1752643369657,0.0449228,163.23,163.2,6.127]
[1752643370760,0.0449228,163.23,163.21,6.1267]
[1752643371165,0.0449228,163.23,163.19,6.1273]
[1752643371863,10.46110106,163.23,163.19,6.1273]
[1752643372256,6.1709228,163.23,163.19,6.1273]
[1752643372462,0.0449228,163.23,163.19,6.1273]
[1752643373463,10.46110106,163.23,163.18,6.1277]
[1752643377662,6.1265,163.22,163.17,6.1282]
[1752643378264,10.41777826,163.19,163.1,1.06562146]
[1752643378469,4.29017826,163.19,163.11,9.41853081]
[1752643378671,4.29017826,163.21,163.13,4.29017826]
[1752643378973,0.04645038,163.17,163.15,6.1288]
[1752643379372,6.1271,163.2,163.15,6.1288]
[1752643379769,0.04376,163.18,163.15,6.1288]
[1752643380173,0.04376,163.18,163.07,6.1846679]
[1752643380372,0.04376,163.18,163.1,4.29017826]
[1752643380569,4.29017826,163.19,163.11,5.12591832]
[1752643380774,4.29017826,163.19,163.1,4.29017826]
[1752643380972,0.04077266,163.16,163.11,5.12592189]
[1752643381175,0.04077266,163.16,163.13,6.1295]
[1752643381673,0.04077266,163.16,163.08,180.3]
[1752643381674,4.29017826,163.15,163.11,6.1303]
[1752643381870,4.29017826,163.15,163.08,4.29017826]
[1752643382271,4.29017826,163.13,163.09,6.131]
[1752643382472,4.29017826,163.15,163.08,4.29017826]
[1752643382775,10.41787826,163.19,163.14,6.1291]
[1752643383372,0.0389544,163.18,163.16,6.1285]
[1752643383579,0.0389544,163.18,163.08,5.11785409]
[1752643383580,0.0389544,163.18,163.14,4.29017826]
[1752643384081,535.6466,163.22,163.17,6.128]
[1752643384275,0.04285894,163.18,163.17,6.128]
[1752643384468,0.04285894,163.18,163.16,6.1285]
[1752643385177,0.04285894,163.18,163.14,4.29017826]
[1752643385678,0.04285894,163.18,163.15,6.1289]
[1752643385881,0.04285894,163.18,163.11,4.29017826]
[1752643386978,6.17075894,163.18,163.13,6.1294]
[1752643387576,6.17075894,163.18,163.14,6.1293]
[1752643388382,6.1282,163.17,163.13,6.1296]
[1752643389073,6.17085894,163.18,163.13,6.1296]
[1752643389280,0.04285894,163.18,163.13,6.1296]
[1752643389877,6.1283,163.17,163.13,6.1296]
[1752643391775,6.17095894,163.18,163.13,6.1297]
[1752643392179,6.17095894,163.18,163.12,4.29017826]
[1752643392380,6.17095894,163.18,163.14,6.1291]
[1752643393770,6.1284,163.17,163.14,6.1291]
[1752643394481,6.17085894,163.18,163.14,6.1291]
[1752643394980,6.17085894,163.18,163.12,4.29017826]
[1752643395274,6.1283,163.17,163.12,4.29017826]
[1752643395675,6.1283,163.17,163.11,4.29017826]
[1752643396180,6.1283,163.17,163.13,6.1294]
[1752643397376,6.1283,163.17,163.14,6.1294]
[1752643397584,6.1287,163.16,163.12,4.29017826]
[1752643398280,6.1287,163.16,163.1,180.4]
[1752643398281,6.1287,163.16,163.11,4.29017826]
[1752643398582,6.1291,163.15,163.12,5.09156017]
[1752643398777,6.1291,163.15,163.1,180.4]
[1752643398985,6.16909752,163.15,163.11,5.09073528]
[1752643399182,6.16909752,163.15,163.12,5.09362085]
[1752643399486,4.33017578,163.15,163.07,9.40803235]
[1752643399680,4.33017578,163.15,163.08,5.09454442]
[1752643399877,4.33017578,163.15,163.09,5.09454442]
[1752643400076,6.1295,163.14,163.1,5.09454442]
[1752643400381,6.1295,163.14,163.1,6.1307]
[1752643401182,6.1295,163.14,163.11,5.10158676]
[1752643401383,6.1299,163.13,163.1,6.1307]
[1752643401583,3.06286852,163.13,163.11,5.10158676]
[1752643401777,3.06286852,163.13,163.09,6.1311]
[1752643401978,6.1302,163.12,163.1,5.10158676]
[1752643402179,6.1302,163.12,163.07,5.11785409]
[1752643402377,6.1302,163.12,163.08,5.10594643]
[1752643402577,10.4665506,163.13,163.09,11.23714643]
[1752643402780,10.4665506,163.13,163.1,5.10594643]
[1752643402981,10.4665506,163.13,163.09,6.1312]
[1752643403186,4.3366506,163.13,163.1,11.23382536]
[1752643403386,0.04647234,163.13,163.1,6.1308]
[1752643403582,0.04647234,163.13,163.11,5.10486628]
[1752643403782,0.04647234,163.13,163.1,6.1308]
[1752643404084,0.04647234,163.13,163.11,5.10470291]
[1752643404285,0.04647234,163.13,163.08,5.11785409]
[1752643404485,0.04647234,163.13,163.09,5.10604016]
[1752643404685,4.3366506,163.13,163.1,5.10604016]
[1752643404886,10.41997826,163.13,163.11,5.10687009]
[1752643405080,4.29017826,163.13,163.09,6.131]
[1752643405283,4.29017826,163.13,163.07,5.11785409]
[1752643405284,4.33598925,163.13,163.1,5.10821974]
[1752643405589,4.33598925,163.13,163.07,5.11785409]
[1752643405590,4.33598925,163.13,163.11,5.10821974]
[1752643405778,4.33598925,163.13,163.07,5.11785409]
[1752643405984,4.33598925,163.13,163.08,5.10803824]
[1752643406184,4.33598925,163.13,163.09,5.10803824]
[1752643406383,10.46598925,163.13,163.1,5.10803824]
[1752643406686,10.46598925,163.13,163.06,9.40803235]
[1752643407087,10.46598925,163.13,163.06,4.29017826]
[1752643407284,6.1301,163.12,163.08,6.1316]
[1752643407591,0.04581099,163.13,163.06,4.29017826]
[1752643407887,0.04581099,163.13,163.08,6.1313]
[1752643408086,4.33598925,163.13,163.08,6.1313]
[1752643408785,6.1303,163.12,163.09,6.1312]
[1752643408981,4.33598925,163.13,163.09,6.1312]
[1752643409378,4.33598925,163.13,163.1,6.1307]
[1752643409987,0.04581099,163.13,163.1,6.1307]
[1752643410282,0.04581099,163.13,163.11,6.1304]
[1752643411286,0.04581099,163.13,163.12,6.1301]
[1752643411693,0.04581099,163.13,163.12,11.23492664]
[1752643418291,0.04581099,163.13,163.12,6.1301]
[1752643418693,0.04581099,163.13,163.09,4.29017826]
[1752643418990,4.33598925,163.13,163.05,4.29017826]
[1752643419186,0.04581099,163.13,163.06,5.1148473]
[1752643419383,6.17571099,163.13,163.09,6.1312]
[1752643419589,4.33598925,163.13,163.04,5.1179848]
[1752643419787,33.0,163.17,163.08,4.29017826]
[1752643419985,6.1298,163.13,163.09,6.1309]
[1752643420195,0.03866767,163.1,163.09,6.1309]
[1752643422302,0.03866767,163.1,163.09,11.23898747]
[1752643422899,0.03866767,163.1,163.09,6.1309]
[1752643423600,0.03866767,163.1,163.08,6.1315]
[1752643423802,0.03866767,163.1,163.07,4.29017826]
[1752643423998,0.03866767,163.1,163.08,5.11028659]
[1752643424198,0.03866767,163.1,163.07,4.29017826]
[1752643424402,0.03866767,163.1,163.09,6.1312]
[1752643424599,0.03866767,163.1,163.09,11.24114133]
[1752643426003,0.03866767,163.1,163.09,6.1312]
[1752643426695,0.03866767,163.1,163.05,5.1179848]
[1752643426696,0.03866767,163.1,163.08,6.1315]
[1752643428004,0.03866767,163.1,163.07,6.1319]
[1752643428204,0.03866767,163.1,163.08,5.11445396]
[1752643428502,0.03866767,163.1,163.07,6.1319]
[1752643428803,0.03866767,163.1,163.05,4.29017826]
[1752643428998,0.03866767,163.1,163.06,5.11499851]
[1752643429205,0.03866767,163.1,163.07,5.11499851]
[1752643429401,0.03866767,163.1,163.05,4.29017826]
[1752643429601,0.03866767,163.1,163.06,5.11601812]
[1752643429797,0.03866767,163.1,163.07,5.11601812]
[1752643430102,0.03866767,163.1,163.07,6.1318]
[1752643430803,0.03866767,163.1,163.05,4.29017826]
[1752643431103,0.03866767,163.1,163.07,4.29017826]
[1752643431302,0.03866767,163.1,163.08,5.11599313]
[1752643431503,0.03866767,163.1,163.09,5.11599313]
[1752643431703,0.03866767,163.1,163.09,11.24719313]
[1752643433112,0.03866767,163.1,163.09,11.24594288]
[1752643440009,0.03866767,163.1,163.09,5.11474288]
[1752643440208,0.03866767,163.1,163.05,4.30254707]
[1752643440408,0.03866767,163.1,163.07,6.1317]
[1752643440609,0.03866767,163.1,163.08,5.11721834]
[1752643440810,0.03866767,163.1,163.07,6.1317]
[1752643440811,0.03866767,163.1,163.05,4.30254707]
[1752643441013,0.03866767,163.1,163.07,6.1319]
[1752643441206,0.03866767,163.1,163.08,5.11724094]
[1752643441405,0.03866767,163.1,163.05,4.30254707]
[1752643441604,0.03866767,163.1,163.06,5.11789524]
[1752643441806,0.03866767,163.1,163.07,5.11789524]
[1752643442016,0.03866767,163.1,163.08,5.11789524]
[1752643442211,0.03866767,163.1,163.09,5.11789524]
[1752643442812,0.03866767,163.1,163.09,11.24909524]
[1752643443109,0.03866767,163.1,163.09,5.11789524]
[1752643443416,0.03866767,163.1,163.07,6.1317]
[1752643443617,0.03866767,163.1,163.08,5.11868]
[1752643443813,0.03866767,163.1,163.07,6.1317]
[1752643444116,0.03866767,163.1,163.08,5.11868]
[1752643444317,0.03866767,163.1,163.08,6.1315]
[1752643444912,0.03866767,163.1,163.09,11.24902645]
[1752643445215,0.03866767,163.1,163.09,5.11782645]
[1752643445415,0.03866767,163.1,163.09,11.24902645]
[1752643446217,0.03866767,163.1,163.09,6.1312]
[1752643446515,33.0,163.16,163.11,6.1303]
[1752643446717,33.0,163.16,163.09,4.30259388]
[1752643446912,33.0,163.16,163.1,5.11611485]
[1752643447118,33.0,163.16,163.09,4.30259388]
[1752643447313,33.0,163.16,163.1,5.11610005]
[1752643447513,33.0,163.16,163.09,4.30259388]
[1752643447713,6.1294,163.14,163.1,11.24680005]
[1752643447913,33.0,163.16,163.1,6.1307]
[1752643448314,6.1296,163.14,163.1,6.1307]
[1752643450720,6.1296,163.14,163.11,6.1304]
[1752643451220,6.1298,163.13,163.1,6.1307]
[1752643453120,6.1295,163.14,163.1,6.1307]
[1752643453823,6.13,163.13,163.1,6.1307]
[1752643456923,6.13,163.13,163.09,6.1311]
[1752643457223,6.13,163.13,163.1,5.10454604]
[1752643457424,6.13,163.13,163.07,4.3024035]
[1752643457625,6.13,163.13,163.08,5.10506664]
[1752643457822,6.13,163.13,163.09,5.10506664]
[1752643458019,6.13,163.13,163.1,5.10506664]
[1752643458225,6.13,163.13,163.1,6.1308]
[1752643459028,6.1302,163.12,163.09,6.1311]
[1752643459229,33.0,163.16,163.1,5.10626419]
[1752643459430,4.3024035,163.15,163.07,4.3024035]
[1752643459724,6.1299,163.13,163.1,6.1307]
[1752643461333,6.1299,163.13,163.07,4.3024035]
[1752643461532,6.1295,163.14,163.08,5.10926597]
[1752643461835,4.3024035,163.15,163.1,6.1307]
[1752643462127,33.0,163.16,163.07,4.3024035]
[1752643462431,37.3024035,163.16,163.1,6.1305]
[1752643462834,6.1295,163.14,163.1,6.1305]
[1752643463031,6.1295,163.14,163.11,5.11045298]
[1752643463232,6.1295,163.14,163.1,6.1305]
[1752643463433,6.1295,163.14,163.11,5.11220706]
[1752643463632,6.1295,163.14,163.1,6.1305]
[1752643463835,6.1295,163.14,163.11,5.11220706]
[1752643464033,6.1295,163.14,163.1,6.1305]
[1752643464234,6.1295,163.14,163.11,5.11227208]
[1752643464434,6.1295,163.14,163.1,6.1305]
[1752643464634,6.1295,163.14,163.11,5.11227208]
[1752643464835,6.1295,163.14,163.1,6.1305]
[1752643465037,6.1298,163.13,163.11,5.11227208]
[1752643465236,6.1298,163.13,163.09,6.1311]
[1752643465437,6.1298,163.13,163.1,5.11227263]
[1752643465636,6.1298,163.13,163.11,5.11227263]
[1752643465938,6.1298,163.13,163.09,6.1311]
[1752643466137,6.1298,163.13,163.1,5.11265866]
[1752643466336,6.1298,163.13,163.11,5.11265866]
[1752643466537,6.1298,163.13,163.09,6.1311]
[1752643466738,6.1298,163.13,163.1,5.11265922]
[1752643466939,6.1298,163.13,163.11,5.11265922]
[1752643467135,6.1298,163.13,163.09,6.1311]
[1752643467431,6.1298,163.13,163.1,5.11265977]
[1752643467636,6.1298,163.13,163.11,5.11265977]
[1752643467835,6.1298,163.13,163.09,6.1311]
[1752643468037,6.1298,163.13,163.1,5.11265977]
[1752643468237,6.1298,163.13,163.11,5.11265977]
[1752643468438,6.1298,163.13,163.09,6.1311]
[1752643468643,6.1298,163.13,163.1,5.11302391]
[1752643468844,6.1295,163.14,163.11,5.11302391]
[1752643469144,6.1295,163.14,163.1,6.1308]
[1752643469340,6.1295,163.14,163.11,5.11300474]
[1752643469539,6.1295,163.14,163.1,6.1308]
[1752643469740,6.1295,163.14,163.11,5.11300474]
[1752643470040,6.1295,163.14,163.09,6.1311]
[1752643470235,37.3024035,163.16,163.1,5.11300525]
[1752643470442,37.3024035,163.16,163.11,5.11300525]
[1752643470646,6.1298,163.13,163.09,6.1312]
[1752643470843,6.1298,163.13,163.1,5.11300525]
[1752643471142,6.1298,163.13,163.11,5.11300525]
[1752643471342,6.1298,163.13,163.09,6.1312]
[1752643471536,6.1298,163.13,163.1,5.11318847]
[1752643471736,6.1298,163.13,163.11,5.11318847]
[1752643471939,6.1298,163.13,163.09,6.1312]
[1752643472247,6.1295,163.14,163.1,11.24401012]
[1752643472446,6.1295,163.14,163.11,5.11321012]
[1752643472744,6.1295,163.14,163.12,5.11321012]
[1752643472945,6.1295,163.14,163.1,6.1308]
[1752643473141,6.1295,163.14,163.11,5.11271093]
[1752643473346,6.1295,163.14,163.1,6.1308]
[1752643473347,6.1298,163.13,163.1,6.1308]
[1752643473541,6.1298,163.13,163.11,5.1131896]
[1752643473748,6.1298,163.13,163.09,8.88450429]
[1752643473953,6.1298,163.13,163.1,5.1131896]
[1752643474144,6.1298,163.13,163.11,5.1131896]
[1752643474449,6.1302,163.12,163.09,6.1312]
[1752643474646,6.1302,163.12,163.1,5.11409806]
[1752643474846,6.1302,163.12,163.09,8.88450429]
[1752643475042,6.1302,163.12,163.1,5.11409806]
[1752643475246,6.1302,163.12,163.11,5.11409806]
[1752643476249,6.1302,163.12,163.09,8.88450429]
[1752643476449,6.1302,163.12,163.1,5.11461712]
[1752643476645,6.1302,163.12,163.09,8.88450429]
[1752643476841,6.1302,163.12,163.1,5.11461712]
[1752643477144,6.1302,163.12,163.09,8.88450429]
[1752643477345,6.1302,163.12,163.1,5.1146057]
[1752643477546,6.1302,163.12,163.09,8.88450429]
[1752643477745,6.1302,163.12,163.1,5.1146057]
[1752643478042,6.1302,163.12,163.09,8.88450429]
[1752643478245,6.1302,163.12,163.1,5.11459725]
[1752643478448,6.1302,163.12,163.09,8.88450429]
[1752643478648,6.1302,163.12,163.1,5.11459725]
[1752643478850,6.1302,163.12,163.09,8.88450429]
[1752643479143,6.1305,163.11,163.1,5.11496058]
[1752643479351,2.75330429,163.1,163.06,2.75330429]
[1752643479547,8.88380429,163.11,163.07,5.11583853]
[1752643479850,8.88380429,163.11,163.08,11.24723853]
[1752643480148,6.1309,163.1,163.09,5.11583853]
[1752643480545,2.75330429,163.11,163.04,5.13760917]
[1752643480746,12.2561,163.18,163.05,5.11611755]
[1752643480747,2.75537932,163.07,163.05,5.11611755]
[1752643480953,2.75537932,163.07,163.06,5.11611755]
[1752643483954,4.30699809,163.09,163.0,5.10102734]
[1752643484150,4.30699809,163.09,163.01,5.10102734]
[1752643484458,6.132,163.07,163.02,5.10102734]
[1752643484749,4.30699809,163.1,163.04,6.133]
[1752643485250,6.132,163.07,163.03,6.1333]
[1752643486557,10.43879809,163.08,163.04,6.1331]
[1752643486952,4.30699809,163.1,163.01,4.30699809]
[1752643487149,184.86699809,163.12,163.03,4.30699809]
[1752643487353,4.30699809,163.12,163.04,5.09445419]
[1752643487558,4.30441489,163.09,163.05,5.09445419]
[1752643487758,4.30441489,163.09,163.01,4.30441489]
[1752643487960,4.30441489,163.09,163.02,5.0924576]
[1752643488258,6.1323,163.07,163.03,11.2258576]
[1752643488556,6.1323,163.07,163.04,5.0924576]
[1752643488758,6.1323,163.07,163.03,6.1334]
[1752643488952,6.1323,163.07,163.04,5.09198189]
[1752643489154,6.1323,163.07,163.03,6.1334]
[1752643489357,6.1323,163.07,163.04,5.09142043]
[1752643489556,6.1324,163.06,163.03,6.1334]
[1752643489759,6.1324,163.06,163.04,5.09142043]
[1752643489959,6.1324,163.06,163.03,6.1334]
[1752643490161,6.1322,163.07,163.04,5.09142043]
[1752643490458,6.1322,163.07,163.03,6.1334]
[1752643490663,6.1324,163.06,163.04,5.09089331]
[1752643490856,4.30441489,163.09,163.03,6.1334]
[1752643491161,6.1321,163.07,163.03,6.1334]
[1752643491457,4.30441489,163.09,163.03,6.1334]
[1752643491960,6.1319,163.08,163.03,6.1334]
[1752643492358,6.1319,163.08,163.04,6.133]
[1752643492660,33.0,163.11,163.03,4.30441489]
[1752643492861,33.0,163.11,163.04,5.08783131]
[1752643493056,6.131,163.1,163.05,6.1324]
[1752643493459,33.0,163.11,163.03,4.30441489]
[1752643493658,39.1308,163.11,163.06,6.1323]
[1752643494564,33.0,163.15,163.07,4.30441489]
[1752643494859,33.0,163.15,162.99,12.27]
[1752643494860,33.0,163.15,163.09,4.30441489]
[1752643495060,33.0,163.15,163.11,4.30441489]
[1752643495265,6.1288,163.16,163.11,4.30441489]
[1752643495465,6.1288,163.16,163.11,10.43461489]
[1752643496867,6.1288,163.16,163.12,6.1301]
[1752643497366,6.1284,163.17,163.12,6.1301]
[1752643497767,33.0,163.18,163.13,4.30441489]
[1752643498463,33.0,163.18,163.14,6.1292]
[1752643498669,39.1279,163.18,163.13,4.30441489]
[1752643498968,6.1279,163.18,163.13,10.43391489]
[1752643499873,6.1282,163.17,163.13,10.43391489]
[1752643500167,37.30441489,163.21,163.13,4.30441489]
[1752643500372,4.30441489,163.19,163.11,4.30441489]
[1752643500671,4.30441489,163.17,163.09,4.30441489]
[1752643500973,4.30441489,163.17,163.1,6.1308]
[1752643501372,4.30441489,163.15,163.08,6.1314]
[1752643501976,6.13,163.13,163.08,6.1314]
[1752643502474,6.1298,163.13,163.08,6.1314]
[1752643502775,6.1298,163.13,163.09,6.1311]
[1752643503676,33.0,163.16,163.1,6.1307]
[1752643504278,6.1292,163.15,163.11,6.1304]
[1752643504778,6.1294,163.14,163.1,6.1306]
[1752643507271,6.1291,163.15,163.11,6.1304]
[1752643507475,33.0,163.16,163.09,4.30441489]
[1752643507876,6.1298,163.13,163.09,6.1311]
[1752643508176,4.30441489,163.15,163.08,4.30441489]
[1752643508380,6.1301,163.12,163.08,10.43581489]
[1752643509068,6.1305,163.11,163.08,10.43581489]
[1752643509270,6.1305,163.11,163.08,6.1314]
[1752643511180,6.1303,163.12,163.08,6.1314]
[1752643511383,4.30441489,163.15,163.09,6.131]
[1752643511981,6.13,163.13,163.09,6.131]
[1752643512687,6.1303,163.12,163.08,6.1315]
[1752643514073,6.1307,163.11,163.07,6.1319]
[1752643514277,6.1307,163.11,163.06,4.30441489]
[1752643514479,4.30441489,163.15,163.07,5.0863741]
[1752643514779,6.1303,163.12,163.08,6.1314]